{"text_format":"1","workbook":"xlsx","n_sheets":3,"sheets":["Inventario","Bin Lookup","Inventory Pick List"],"not_rendered":{"charts":0,"images":0,"macros":1,"external_links":1,"defined_names":8,"comments":0,"pivot_tables":0},"unopened":[],"bounds":{"document_bytes":16777216,"sheet_cells":100000,"rows_first":2000,"rows_last":500,"rows_between":2000,"halvings":0,"cell_chars":16384,"cell_head_chars":4096},"cells_cut":0,"cells_raw":0,"read":"whole","date_system":"1900"}

{"sheet":"Inventario","index":0,"n_rows":13,"n_cols":11,"rows_kept":13,"cut":false,"hidden":false,"merged":[]}
[null,"PLANILLA DE INVENTARIO DE BODEGA"]
[null,"VALOR DEL INVENTARIO","CANTIDAD INVENTARIO","CUENTA BIN","INVENTORY PICK LIST","BIN LOOKUP"]
[null,{"$f":"SUM(InventoryList[VALOR DE INVENTARIO])","v":3305},{"$f":"COUNTA(InventoryList[DESCRIPCIÓN])","v":9},{"$f":"SUMPRODUCT((1/COUNTIF(InventoryList[BIN '#],InventoryList[BIN '#]&\"\")))","v":6}]
[null,"SKU","DESCRIPCIÓN","BIN #","UBICACIÓN","UNIDAD","CANTIDAD\nDISPONIBLE","CANTIDAD A\nPEDIR","COSTE","VALOR DE INVENTARIO","VOLVER A\nPEDIR"]
[null,"BR68902","Pedido 1","T345","Estante B2, nivel 1  ","Paquete (5 unidades)  ",10,10,30,{"$f":"InventoryList[[#This Row],[CANTIDAD\nDISPONIBLE]]*InventoryList[[#This Row],[COSTE]]","v":300},{"$f":"IFERROR(IF(InventoryList[[#This Row],[CANTIDAD\nDISPONIBLE]]<=InventoryList[[#This Row],[CANTIDAD A\nPEDIR]],1,0),0)","v":1}]
[null,"JD4567","Pedido 2","T5789","Estante A1, nivel 1  ","Unidad  ",5,3,5,{"$f":"InventoryList[[#This Row],[CANTIDAD\nDISPONIBLE]]*InventoryList[[#This Row],[COSTE]]","v":25},{"$f":"IFERROR(IF(InventoryList[[#This Row],[CANTIDAD\nDISPONIBLE]]<=InventoryList[[#This Row],[CANTIDAD A\nPEDIR]],1,0),0)","v":0}]
[null,"CY8090","Pedido 3","T9876","Estante C3, nivel 2  ","Caja (10 unidades)  ",10,5,15,{"$f":"InventoryList[[#This Row],[CANTIDAD\nDISPONIBLE]]*InventoryList[[#This Row],[COSTE]]","v":150},{"$f":"IFERROR(IF(InventoryList[[#This Row],[CANTIDAD\nDISPONIBLE]]<=InventoryList[[#This Row],[CANTIDAD A\nPEDIR]],1,0),0)","v":0}]
[null,"ZX89764","Pedido 4","T345","Estante B2, nivel 1  ","Paquete (5 unidades)  ",20,5,50,{"$f":"InventoryList[[#This Row],[CANTIDAD\nDISPONIBLE]]*InventoryList[[#This Row],[COSTE]]","v":1000},{"$f":"IFERROR(IF(InventoryList[[#This Row],[CANTIDAD\nDISPONIBLE]]<=InventoryList[[#This Row],[CANTIDAD A\nPEDIR]],1,0),0)","v":0}]
[null,"WN67543","Pedido 5","T349","Estante A1, nivel 2  ","Unidad  ",30,3,10,{"$f":"InventoryList[[#This Row],[CANTIDAD\nDISPONIBLE]]*InventoryList[[#This Row],[COSTE]]","v":300},{"$f":"IFERROR(IF(InventoryList[[#This Row],[CANTIDAD\nDISPONIBLE]]<=InventoryList[[#This Row],[CANTIDAD A\nPEDIR]],1,0),0)","v":0}]
[null,"DS12345","Pedido 6","T5789","Estante A1, nivel 1  ","Unidad  ",10,10,3,{"$f":"InventoryList[[#This Row],[CANTIDAD\nDISPONIBLE]]*InventoryList[[#This Row],[COSTE]]","v":30},{"$f":"IFERROR(IF(InventoryList[[#This Row],[CANTIDAD\nDISPONIBLE]]<=InventoryList[[#This Row],[CANTIDAD A\nPEDIR]],1,0),0)","v":1}]
[null,"HT98321","Pedido 7","T9875","Estante B2, nivel 2  ","Paquete (5 unidades)  ",50,20,14,{"$f":"InventoryList[[#This Row],[CANTIDAD\nDISPONIBLE]]*InventoryList[[#This Row],[COSTE]]","v":700},{"$f":"IFERROR(IF(InventoryList[[#This Row],[CANTIDAD\nDISPONIBLE]]<=InventoryList[[#This Row],[CANTIDAD A\nPEDIR]],1,0),0)","v":0}]
[null,"LK78543","Pedido 8","T5786","Estante D4, nivel 5  ","Unidad  ",10,8,60,{"$f":"InventoryList[[#This Row],[CANTIDAD\nDISPONIBLE]]*InventoryList[[#This Row],[COSTE]]","v":600},{"$f":"IFERROR(IF(InventoryList[[#This Row],[CANTIDAD\nDISPONIBLE]]<=InventoryList[[#This Row],[CANTIDAD A\nPEDIR]],1,0),0)","v":0}]
[null,"ZR2345","Pedido 9","T349","Estante A1, nivel 2  ","Unidad  ",25,10,8,{"$f":"InventoryList[[#This Row],[CANTIDAD\nDISPONIBLE]]*InventoryList[[#This Row],[COSTE]]","v":200},{"$f":"IFERROR(IF(InventoryList[[#This Row],[CANTIDAD\nDISPONIBLE]]<=InventoryList[[#This Row],[CANTIDAD A\nPEDIR]],1,0),0)","v":0}]

{"sheet":"Bin Lookup","index":1,"n_rows":10,"n_cols":7,"rows_kept":10,"cut":false,"hidden":false,"merged":[]}
[null,"BIN LOOKUP"]
[]
[null,"BIN #","DESCRIPTION","LOCATION","WIDTH","HEIGHT","LENGTH"]
[null,"T345","Large bin","Row 2, slot 1",50,10,10]
[null,"T5789","Small bin","Row 1, slot 1",25,5,5]
[null,"T9876","Large bin","Row 3, slot 2",50,10,10]
[null,"T098","Medium bin","Row 3, slot 1",30,7,10]
[null,"T349","Small bin","Row 1, slot 2",25,5,5]
[null,"T5786","Large bin","Row 4, slot 5",50,10,10]
[null,"T9875","Large bin","Row 2, slot 2",50,10,10]

{"sheet":"Inventory Pick List","index":2,"n_rows":8,"n_cols":9,"rows_kept":8,"cut":false,"hidden":false,"merged":[]}
[null,"INVENTORY PICK LIST"]
[]
[null,"ORDER #","SKU","PICK QTY","QTY AVAILABLE","ITEM DESCRIPTION","UNIT","BIN #","LOCATION"]
[null,"TP001-1","XR23423",3,{"$f":"IFERROR(VLOOKUP([1]!InventoryPickList[SKU],[1]!InventoryList[#Data],6,FALSE),\"\")","v":""},{"$f":"IFERROR(VLOOKUP([1]!InventoryPickList[SKU],[1]!InventoryList[#Data],2,FALSE),\"\")","v":""},{"$f":"IFERROR(VLOOKUP([1]!InventoryPickList[SKU],[1]!InventoryList[#Data],5,FALSE),\"\")","v":""},{"$f":"IFERROR(VLOOKUP([1]!InventoryPickList[SKU],[1]!InventoryList[#Data],3,FALSE),\"\")","v":""},{"$f":"IFERROR(VLOOKUP([1]!InventoryPickList[SKU],[1]!InventoryList[#Data],4,FALSE),\"\")","v":""}]
[null,"TP001-1","YE98767",1,{"$f":"IFERROR(VLOOKUP([1]!InventoryPickList[SKU],[1]!InventoryList[#Data],6,FALSE),\"\")","v":""},{"$f":"IFERROR(VLOOKUP([1]!InventoryPickList[SKU],[1]!InventoryList[#Data],2,FALSE),\"\")","v":""},{"$f":"IFERROR(VLOOKUP([1]!InventoryPickList[SKU],[1]!InventoryList[#Data],5,FALSE),\"\")","v":""},{"$f":"IFERROR(VLOOKUP([1]!InventoryPickList[SKU],[1]!InventoryList[#Data],3,FALSE),\"\")","v":""},{"$f":"IFERROR(VLOOKUP([1]!InventoryPickList[SKU],[1]!InventoryList[#Data],4,FALSE),\"\")","v":""}]
[null,"TP001-1","BM87684",2,{"$f":"IFERROR(VLOOKUP([1]!InventoryPickList[SKU],[1]!InventoryList[#Data],6,FALSE),\"\")","v":""},{"$f":"IFERROR(VLOOKUP([1]!InventoryPickList[SKU],[1]!InventoryList[#Data],2,FALSE),\"\")","v":""},{"$f":"IFERROR(VLOOKUP([1]!InventoryPickList[SKU],[1]!InventoryList[#Data],5,FALSE),\"\")","v":""},{"$f":"IFERROR(VLOOKUP([1]!InventoryPickList[SKU],[1]!InventoryList[#Data],3,FALSE),\"\")","v":""},{"$f":"IFERROR(VLOOKUP([1]!InventoryPickList[SKU],[1]!InventoryList[#Data],4,FALSE),\"\")","v":""}]
[null,"TP001-1","TS3456",6,{"$f":"IFERROR(VLOOKUP([1]!InventoryPickList[SKU],[1]!InventoryList[#Data],6,FALSE),\"\")","v":""},{"$f":"IFERROR(VLOOKUP([1]!InventoryPickList[SKU],[1]!InventoryList[#Data],2,FALSE),\"\")","v":""},{"$f":"IFERROR(VLOOKUP([1]!InventoryPickList[SKU],[1]!InventoryList[#Data],5,FALSE),\"\")","v":""},{"$f":"IFERROR(VLOOKUP([1]!InventoryPickList[SKU],[1]!InventoryList[#Data],3,FALSE),\"\")","v":""},{"$f":"IFERROR(VLOOKUP([1]!InventoryPickList[SKU],[1]!InventoryList[#Data],4,FALSE),\"\")","v":""}]
[null,"TP001-1","MK676554",3,{"$f":"IFERROR(VLOOKUP([1]!InventoryPickList[SKU],[1]!InventoryList[#Data],6,FALSE),\"\")","v":""},{"$f":"IFERROR(VLOOKUP([1]!InventoryPickList[SKU],[1]!InventoryList[#Data],2,FALSE),\"\")","v":""},{"$f":"IFERROR(VLOOKUP([1]!InventoryPickList[SKU],[1]!InventoryList[#Data],5,FALSE),\"\")","v":""},{"$f":"IFERROR(VLOOKUP([1]!InventoryPickList[SKU],[1]!InventoryList[#Data],3,FALSE),\"\")","v":""},{"$f":"IFERROR(VLOOKUP([1]!InventoryPickList[SKU],[1]!InventoryList[#Data],4,FALSE),\"\")","v":""}]